fUST/lending_fUST_20240830
["ID","MTS","AMOUNT","RATE_DAILY","PERIOD"]
[336636145,1724987447119,-409.5167953,0.00033182,2]
[336636146,1724987447129,-409.5167953,0.00033182,2]
[336636147,1724987447140,-409.5167953,0.00033182,2]
[336636148,1724987447151,-817.7738106,0.00033182,2]
[336636149,1724987447162,-818.918761,0.00033182,2]
[336636150,1724987447171,-409.4593805,0.00033182,2]
[336636151,1724987447182,-409.101932,0.00033182,2]
[336636152,1724987447204,-1232.81,0.000332,14]
[336636153,1724987447215,-4410.36802704,0.00033202,2]
[336636154,1724987447227,-150.112234,0.000334,10]
[336636155,1724987447238,-26663.56,0.000334,14]
[336636156,1724987447249,-595.39,0.000334,14]
[336636157,1724987447259,-150.112233,0.000334,6]
[336636158,1724987447271,-150.112233,0.000334,7]
[336636159,1724987447280,-1000.00787723,0.00033448,2]
[336636160,1724987447294,-249.50296397,0.00033457,5]
[336636161,1724987447303,-235.776794,0.00033497,2]
[336636162,1724987447312,-2261.74093328,0.00033497,2]
[336636163,1724987447321,-864.57,0.000335,30]
[336636164,1724987447331,-1000.0,0.00033535,2]
[336636165,1724987447340,-1039.11478118,0.00033538,2]
[336636166,1724987447349,-1000.0,0.00033547,2]
[336636167,1724987447361,-1000.0,0.00033585,2]
[336636168,1724987447374,-1000.0,0.00033694,2]
[336636169,1724987447383,-934.87627875,0.00033712,10]
[336636170,1724987447393,-271.72460976,0.00033712,2]
[336636171,1724987447403,-172.3,0.00033945,120]
[336636172,1724987447413,-1000.0,0.00033972,2]
[336636173,1724987447423,-527.71480088,0.00034,5]
[336636174,1724987447432,-200.0,0.00034,30]
[336636175,1724987447446,-1000.0,0.00034,34]
[336636176,1724987447456,-300.0,0.00034,120]
[336636177,1724987447465,-230.299999,0.00034,9]
[336636178,1724987447475,-485.924394,0.00034,30]
[336636179,1724987447485,-207.8243323,0.00034006,2]
[336636180,1724987447494,-3000.0,0.00034017,10]
[336636181,1724987447503,-151.0,0.00034027,120]
[336636182,1724987447513,-153.76,0.000342,31]
[336636183,1724987447522,-153.76,0.000342,31]
[336636184,1724987447531,-153.76,0.000342,31]
[336636185,1724987447541,-153.76,0.000342,31]
[336636186,1724987447551,-153.76,0.000342,31]
[336636187,1724987447561,-153.76,0.000342,31]
[336636188,1724987447570,-153.76,0.000342,31]
[336636189,1724987447580,-153.76,0.000342,31]
[336636190,1724987447589,-153.76,0.000342,31]
[336636191,1724987447598,-153.76,0.000342,31]
[336636192,1724987447608,-3000.0,0.00034322,10]
[336636193,1724987447617,-150.112233,0.000344,9]
[336636194,1724987447627,-1000.0,0.0003452,2]
[336636195,1724987447637,-155.0,0.00034521,2]
[336636196,1724987447646,-3000.0,0.00034627,10]
[336636197,1724987447655,-3000.0,0.00034714,10]
[336636198,1724987447665,-1292.30240131,0.00034728,12]
[336636199,1724987447676,-600.0,0.00034794,2]
[336636200,1724987447686,-600.0,0.00034794,2]
[336636201,1724987447696,-500.0,0.00034794,2]
[336636202,1724987447706,-600.0,0.00034794,2]
[336636203,1724987447715,-27493.59333541,0.000349,2]
[336636204,1724987447725,-19052.40413852,0.000349,2]
[336636205,1724987447734,-26663.56,0.000349,14]
[336636206,1724987447744,-500.0,0.00034916,2]
[336636207,1724987447754,-500.0,0.00034925,2]
[336636208,1724987447763,-500.0,0.00034927,2]
[336636209,1724987447773,-172.3,0.00034932,120]
[336636210,1724987447783,-3000.0,0.00034932,10]
[336636211,1724987447792,-750.37815561,0.00034964,2]
[336636212,1724987447801,-500.0,0.00034988,2]
[336636213,1724987447811,-160.0,0.00034998,10]
[336636214,1724987447820,-261.81197577,0.00034998,10]
[336636215,1724987447830,-160.0,0.00034998,10]
[336636216,1724987447840,-68755.65291112,0.00034999,3]
[336636217,1724987447849,-296.990297,0.00034999,7]
[336636218,1724987447858,-186.430321,0.00034999,7]
[336636219,1724987447868,-151.0,0.00034999,7]
[336636220,1724987447877,-186.430321,0.00034999,7]
[336636221,1724987447886,-245.091972,0.00034999,2]
[336636222,1724987447895,-151.0,0.00034999,7]
[336636223,1724987447905,-152.168696,0.00034999,7]
[336636224,1724987447914,-151.0,0.00034999,7]
[336636225,1724987447923,-151.0,0.00034999,7]
[336636226,1724987447932,-198.415403,0.00034999,7]
[336636227,1724987447942,-151.0,0.00034999,7]
[336636228,1724987447951,-151.0,0.00034999,7]
[336636229,1724987447960,-151.0,0.00034999,7]
[336636230,1724987447970,-153.562767,0.00034999,7]
[336636231,1724987447980,-196.581084,0.00034999,7]
[336636232,1724987447990,-989.36549,0.00034999,7]
[336636233,1724987448001,-151.0,0.00034999,7]
[336636234,1724987448012,-196.581084,0.00034999,7]
[336636235,1724987448021,-989.36549,0.00034999,7]
[336636236,1724987448032,-151.0,0.00034999,7]
[336636237,1724987448042,-151.0,0.00034999,7]
[336636238,1724987448051,-151.0,0.00034999,7]
[336636239,1724987448061,-151.0,0.00034999,7]
[336636240,1724987448071,-151.0,0.00034999,7]
[336636241,1724987448080,-151.0,0.00034999,7]
[336636242,1724987448090,-151.0,0.00034999,7]
[336636243,1724987448099,-10392.78884031,0.00035,2]
[336636244,1724987448109,-300.0,0.00035,10]
[336636245,1724987448119,-165.49428982,0.00035,120]
[336636246,1724987448128,-553.3672117,0.00035,120]
[336636247,1724987448139,-151.452974,0.00035,7]
[336636248,1724987448149,-151.535513,0.00035,7]
[336636249,1724987448160,-151.0,0.00035,7]
[336636250,1724987448169,-151.0,0.00035,7]
[336636251,1724987448178,-151.726682,0.00035,7]
[336636252,1724987448188,-151.44745,0.00035,7]
[336636253,1724987448198,-151.559296,0.00035,7]
[336636254,1724987448209,-151.0,0.00035,7]
[336636255,1724987448220,-151.0,0.00035,7]
[336636256,1724987448231,-151.0,0.00035,7]
[336636257,1724987448240,-151.0,0.00035,7]
[336636258,1724987448249,-195.16009,0.00035,7]
[336636259,1724987448258,-151.0,0.00035,7]
[336636260,1724987448267,-151.0,0.00035,7]
[336636261,1724987448277,-679.82925757,0.00035,7]
[336636262,1724987448288,-151.0,0.00035,7]
[336636263,1724987448299,-242.58546,0.00035,7]
[336636264,1724987448308,-310.0,0.00035,30]
[336636265,1724987448317,-310.0,0.00035,30]
[336636266,1724987448327,-310.0,0.00035,30]
[336636267,1724987448336,-310.0,0.00035,30]
[336636268,1724987448345,-310.0,0.00035,30]
[336636269,1724987448354,-310.0,0.00035,30]
[336636270,1724987448364,-310.0,0.00035,30]
[336636271,1724987448375,-310.0,0.00035,30]
[336636272,1724987448384,-310.0,0.00035,30]
[336636273,1724987448393,-310.0,0.00035,30]
[336636274,1724987448403,-310.0,0.00035,30]
[336636275,1724987448412,-310.0,0.00035,30]
[336636276,1724987448421,-310.0,0.00035,30]
[336636277,1724987448431,-310.0,0.00035,30]
[336636278,1724987448441,-172.444347,0.00035,30]
[336636279,1724987448452,-151.86212,0.00035,7]
[336636280,1724987448462,-151.0,0.00035,7]
[336636281,1724987448471,-153.106393,0.00035,7]
[336636282,1724987448480,-151.0,0.00035,7]
[336636283,1724987448489,-151.0,0.00035,7]
[336636284,1724987448499,-151.0,0.00035,7]
[336636285,1724987448508,-152.352409,0.00035,7]
[336636286,1724987448518,-595.39,0.00035,14]
[336636287,1724987448527,-151.0,0.00035,7]
[336636288,1724987448537,-151.0,0.00035,7]
[336636289,1724987448546,-151.0,0.00035,7]
[336636290,1724987448555,-151.0,0.00035,7]
[336636291,1724987448564,-151.0,0.00035,7]
[336636292,1724987448574,-151.546118,0.00035,7]
[336636293,1724987448583,-151.0,0.00035,7]
[336636294,1724987448592,-151.0,0.00035,7]
[336636295,1724987448601,-151.0,0.00035,7]
[336636296,1724987448611,-151.0,0.00035,7]
[336636297,1724987448620,-151.0,0.00035,7]
[336636298,1724987448631,-151.0,0.00035,7]
[336636299,1724987448642,-186.430321,0.00035,7]
[336636300,1724987448651,-151.0,0.00035,7]
[336636301,1724987448660,-186.430321,0.00035,7]
[336636302,1724987448670,-151.0,0.00035,7]
[336636303,1724987448680,-152.561696,0.00035,7]
[336636304,1724987448691,-151.0,0.00035,7]
[336636305,1724987448701,-161.108553,0.00035,7]
[336636306,1724987448711,-151.0,0.00035,7]
[336636307,1724987448722,-196.581084,0.00035,7]
[336636308,1724987448731,-989.36549,0.00035,7]
[336636309,1724987448740,-151.0,0.00035,7]
[336636310,1724987448751,-196.581084,0.00035,7]
[336636311,1724987448762,-989.36549,0.00035,7]
[336636312,1724987448774,-172.828454,0.00035,7]
[336636313,1724987448783,-151.0,0.00035,7]
[336636314,1724987448793,-220.036522,0.00035,7]
[336636315,1724987448805,-255.014827,0.00035,7]
[336636316,1724987448815,-151.0,0.00035,7]
[336636317,1724987448825,-151.0,0.00035,7]
[336636318,1724987448835,-151.0,0.00035,7]
[336636319,1724987448845,-151.0,0.00035,7]
[336636320,1724987448855,-151.0,0.00035,7]
[336636321,1724987448865,-154.65203293,0.00035,10]
[336636322,1724987448875,-351943.87775357,0.00035,4]
[336636323,1724987448885,-500.0,0.00035001,2]
[336636324,1724987448895,-500.0,0.00035001,2]
[336636325,1724987448905,-500.0,0.00035003,2]
[336636326,1724987448915,-500.0,0.00035004,2]
[336636327,1724987448925,-500.0,0.00035005,2]
[336636328,1724987448935,-500.0,0.00035005,2]
[336636329,1724987448945,-500.0,0.00035011,2]
[336636330,1724987448955,-500.0,0.00035012,2]
[336636331,1724987448966,-500.0,0.00035013,2]
[336636332,1724987448975,-500.0,0.00035017,2]
[336636333,1724987448985,-500.0,0.0003502,2]
[336636334,1724987448995,-500.0,0.00035021,2]
[336636335,1724987449005,-500.0,0.00035028,2]
[336636336,1724987449015,-500.0,0.00035031,2]
[336636337,1724987449025,-500.0,0.00035032,2]
[336636338,1724987449139,-500.0,0.00035033,2]
[336636339,1724987449150,-500.0,0.00035039,2]
[336636340,1724987449162,-500.0,0.0003504,2]
[336636341,1724987449172,-807.2667081,0.00035042,2]
[336636342,1724987449183,-500.0,0.00035043,2]
[336636343,1724987449194,-500.0,0.00035044,2]
[336636344,1724987449203,-500.0,0.00035047,2]
[336636345,1724987449212,-500.0,0.00035049,2]
[336636346,1724987449222,-500.0,0.00035049,2]
[336636347,1724987449232,-500.0,0.00035052,2]
[336636348,1724987449241,-500.0,0.00035054,2]
[336636349,1724987449250,-500.0,0.00035057,2]
[336636350,1724987449260,-500.0,0.0003506,2]
[336636351,1724987449270,-500.0,0.00035062,2]
[336636352,1724987449280,-1000.0,0.00035068,2]
[336636353,1724987449293,-263.0,0.00035173,2]
[336636354,1724987449302,-1232.81,0.000352,14]
[336636355,1724987449311,-864.57,0.000352,30]
[336636356,1724987449321,-3000.0,0.00035237,10]
[336636357,1724987449331,-200.0,0.00035333,120]
[336636358,1724987449341,-151.0,0.0003537,120]
[336636359,1724987449351,-3000.0,0.00035542,10]
[336636360,1724987449363,-1000.0,0.00035616,2]
[336636361,1724987449373,-500.0,0.00035616,30]
[336636362,1724987449383,-536.69542329,0.00035616,30]
[336636363,1724987449394,-500.0,0.00035616,120]
[336636364,1724987449404,-500.0,0.00035616,120]
[336636365,1724987449415,-500.0,0.00035616,120]
[336636366,1724987449426,-500.0,0.00035616,120]
[336636367,1724987449435,-500.0,0.00035616,120]
[336636368,1724987449445,-500.0,0.00035616,120]
[336636369,1724987449454,-500.0,0.00035616,120]
[336636370,1724987449464,-500.0,0.00035616,120]
[336636371,1724987449474,-500.0,0.00035616,120]
[336636372,1724987449484,-500.0,0.00035616,120]
[336636373,1724987449495,-500.0,0.00035616,120]
[336636374,1724987449506,-500.0,0.00035616,120]
[336636375,1724987449515,-500.0,0.00035616,120]
[336636376,1724987449525,-500.0,0.00035616,120]
[336636377,1724987449536,-500.0,0.00035616,120]
[336636378,1724987449546,-500.0,0.00035616,120]
[336636379,1724987449557,-500.0,0.00035616,120]
[336636380,1724987449568,-500.0,0.00035616,120]
[336636381,1724987449577,-500.0,0.00035616,120]
[336636382,1724987449588,-565.29746634,0.00035616,120]
[336636383,1724987449599,-474.61702361,0.00035616,60]
[336636384,1724987449608,-400.0,0.00035616,60]
[336636385,1724987449618,-859.755662,0.00035616,120]
[336636386,1724987449629,-207.8512623,0.00035633,2]
[336636387,1724987449639,-207.8512623,0.00035633,2]
[336636388,1724987449648,-207.8512623,0.00035633,2]
[336636389,1724987449657,-207.8512623,0.00035633,2]
[336636390,1724987449669,-207.8512623,0.00035633,2]
[336636391,1724987449680,-415.2787544,0.00035633,2]
[336636392,1724987449691,-3000.0,0.00035847,10]
[336636393,1724987449700,-172.3,0.00035918,120]
[336636394,1724987449711,-300.0,0.00036,12]
[336636395,1724987449720,-1000.0,0.00036,120]
[336636396,1724987449730,-250.0,0.00036,30]
[336636397,1724987449739,-227.0,0.00036,2]
[336636398,1724987449748,-227.0,0.00036,2]
[336636399,1724987449757,-227.0,0.00036,2]
[336636400,1724987449767,-3000.0,0.00036153,10]
[336636401,1724987449776,-374.68738313,0.00036164,2]
[336636402,1724987449846,-625.31261687,0.00036164,2]
[336636403,1724987449856,-200.0,0.00036239,120]
[336636404,1724987449865,-258.31651763,0.0003624,2]
[336636405,1724987449875,-159.0,0.00036247,2]
[336636406,1724987449884,-154.68290005,0.00036363,2]
[336636407,1724987449894,-3000.0,0.00036458,10]
[336636408,1724987449904,-2759.89112174,0.000365,5]
[336636409,1724987449917,-290.21825122,0.000365,5]
[336636410,1724987449929,-12.99836947,0.000365,14]
[336636411,1724987449996,-500.0,0.00021369,2]
[336636412,1724987450007,-500.0,0.00021643,2]
[336636413,1724987450016,-400.0,0.00032,120]
[336636414,1724987450026,-151.0,0.00034999,7]
[336636415,1724987450037,-151.0,0.00035,7]
[336636416,1724987450047,-151.0,0.00035,7]
[336636417,1724987450057,-151.0,0.00035,7]
[336636418,1724987450066,-26650.56163053,0.000365,14]
[336636419,1724987450075,-1122.0363468,0.00036712,2]
[336636420,1724987450085,-151.0,0.00036712,120]
[336636421,1724987450094,-3000.0,0.00036763,10]
[336636422,1724987450104,-595.39,0.000368,14]
[336636423,1724987450113,-172.3,0.00036904,120]
[336636424,1724987450122,-300.0,0.00037,14]
[336636425,1724987450133,-400.508383,0.00037,120]
[336636426,1724987450142,-1232.81,0.00037,14]
[336636427,1724987450151,-3000.0,0.00037068,10]
[336636428,1724987450161,-1127.41230184,0.0003707,31]
[336636429,1724987450170,-864.57,0.000371,30]
[336636430,1724987450179,-3000.0,0.00037286,10]
[336636431,1724987450191,-327.824637,0.00037318,2]
[336636432,1724987450202,-3000.0,0.00037373,10]
[336636433,1724987450211,-258.0,0.00037517,2]
[336636434,1724987450225,-3000.0,0.00037678,10]
[336636435,1724987450234,-177.52756237,0.00037849,23]
[336636436,1724987450244,-50000.0,0.00037878,12]
[336636437,1724987450255,-172.3,0.0003789,120]
[336636438,1724987450267,-3000.0,0.00037983,10]
[336636439,1724987450279,-200.0,0.00037984,120]
[336636440,1724987450292,-300.0,0.00038,15]
[336636441,1724987450302,-637.83033161,0.00038,10]
[336636442,1724987450313,-559.6862586,0.00038,20]
[336636443,1724987450325,-1000.0,0.00038,120]
[336636444,1724987450336,-153.76,0.00038,31]
[336636445,1724987450346,-153.76,0.00038,31]
[336636446,1724987450356,-153.76,0.00038,31]
[336636447,1724987450369,-153.76,0.00038,31]
[336636448,1724987450380,-153.76,0.00038,31]
[336636449,1724987450391,-153.76,0.00038,31]
[336636450,1724987450401,-153.76,0.00038,31]
[336636451,1724987450413,-153.76,0.00038,31]
[336636452,1724987450424,-153.76,0.00038,31]
[336636453,1724987450436,-153.76,0.00038,31]
[336636454,1724987450455,-250.0,0.00038,30]
[336636455,1724987450464,-151.0,0.00038055,120]
[336636456,1724987450473,-3000.0,0.00038288,10]
[336636457,1724987450482,-649.73572755,0.00038356,120]
[336636458,1724987450491,-3000.0,0.00038593,10]
[336636459,1724987450500,-593.52459755,0.000386,30]
[336636460,1724987450509,-316.96638841,0.000386,30]
[336636461,1724987450522,-26663.56,0.000386,14]
[336636462,1724987450534,-155.0,0.00038663,14]
[336636463,1724987450546,-595.39,0.000387,14]
[336636464,1724987450558,-3368.48453382,0.00038727,90]
[336636465,1724987450570,-172.3,0.00038877,120]
[336636466,1724987450583,-3000.0,0.00038898,10]
[336636467,1724987450595,-864.57,0.000389,30]
[336636468,1724987450607,-300.0,0.00039,17]
[336636469,1724987450620,-150.0,0.00039,30]
[336636470,1724987450631,-227.0,0.00039,2]
[336636471,1724987450642,-227.0,0.00039,2]
[336636472,1724987450654,-227.0,0.00039,2]
[336636473,1724987450666,-3000.0,0.00039203,10]
[336636474,1724987450678,-200.0,0.00039363,120]
[336636475,1724987450690,-151.0,0.00039397,120]
[336636476,1724987450702,-818.05566368,0.00039452,30]
[336636477,1724987450715,-1008.76607019,0.000395,2]
[336636478,1724987450727,-3000.0,0.00039508,10]
[336636479,1724987450738,-3000.0,0.00039814,10]
[336636480,1724987450750,-3000.0,0.00039857,10]
[336636481,1724987450761,-258.0,0.00039862,14]
[336636482,1724987450772,-172.3,0.00039863,120]
[336636483,1724987450785,-152.0,0.00039993,15]
[336636484,1724987450799,-4846.02464861,0.0004,2]
[336636485,1724987450811,-900.85670482,0.0004,4]
[336636486,1724987450827,-52110.87391164,0.0004,2]
[336636487,1724987450926,-500.0,0.00021917,2]
[336636488,1724987450939,-7469.21609444,0.0004,2]
[336636489,1724987450951,-300.0,0.0004,19]
[336636490,1724987450963,-152.0,0.0004,15]
[336636491,1724987450975,-35760.62251372,0.0004,7]
[336636492,1724987451164,-302.36300465,0.00018266,2]
[336636493,1724987451176,-500.0,0.00019178,2]
[336636494,1724987451187,-218.29841746,0.00022191,5]
[336636495,1724987451201,-281.70158254,0.00022191,5]
[336636496,1724987451212,-500.0,0.00022465,5]
[336636497,1724987451221,-500.0,0.00022739,5]
[336636498,1724987451234,-500.0,0.00023013,5]
[336636499,1724987451244,-500.0,0.00023287,5]
[336636500,1724987451255,-500.0,0.00023561,5]
[336636501,1724987451267,-500.0,0.00023835,5]
[336636502,1724987451278,-500.0,0.00024109,5]
[336636503,1724987451291,-500.0,0.00024383,5]
[336636504,1724987451300,-354.6699432,0.00024657,5]
[336636505,1724987451310,-580.23373713,0.0004,7]
[336636506,1724987451322,-524.29999999,0.0004,7]
[336636689,1724988551160,-174.544953,0.00014247,2]
[336636732,1724988638884,-1148.44801526,0.00018595,2]
[336636733,1724988638897,-4398.93039184,0.00018595,2]
[336636734,1724988638910,-300.754744,0.0001863,2]
[336636735,1724988638921,-298.9080311,0.00018741,2]
[336636736,1724988638931,-166.666666,0.00018819,2]
[336636737,1724988638940,-166.666666,0.00018908,2]
[336636738,1724988638950,-166.666666,0.00018997,2]
[336636739,1724988638959,-166.666666,0.00019086,2]
[336636740,1724988638969,-166.666666,0.00019176,2]
[336636741,1724988638980,-166.666666,0.00019265,2]
[336636742,1724988638990,-166.666666,0.00019354,2]
[336636743,1724988639003,-166.666666,0.00019443,2]
[336636744,1724988639013,-166.666666,0.00019532,2]
[336636745,1724988639022,-166.666666,0.00019621,2]
[336636746,1724988639031,-166.666666,0.0001971,2]
[336636747,1724988639041,-166.666666,0.000198,2]
[336636748,1724988639051,-264.56762906,0.00019902,2]
[336636749,1724988639061,-500.0,0.00019999,2]
[336636750,1724988639071,-500.0,0.00019999,2]
[336636751,1724988639082,-500.0,0.00019999,2]
[336636752,1724988639091,-500.0,0.00019999,2]
[336636753,1724988639102,-500.0,0.00019999,2]
[336636754,1724988639113,-500.0,0.00019999,2]
[336636755,1724988639124,-500.0,0.00019999,2]
[336636756,1724988639134,-500.0,0.00019999,2]
[336636757,1724988639144,-500.0,0.00019999,2]
[336636758,1724988639154,-500.0,0.00019999,2]
[336636759,1724988639164,-500.0,0.00019999,2]
[336636760,1724988639175,-500.0,0.00019999,2]
[336636761,1724988639186,-500.0,0.00019999,2]
[336636762,1724988639195,-500.0,0.00019999,2]
[336636763,1724988639205,-500.0,0.00019999,2]
[336636764,1724988639216,-500.0,0.00019999,2]
[336636765,1724988639226,-500.0,0.00019999,2]
[336636766,1724988639235,-500.0,0.00019999,2]
[336636767,1724988639245,-597.47811988,0.00019999,2]
[336636768,1724988639254,-200.0,0.0002,7]
[336636769,1724988639264,-200.0,0.0002,7]
[336636770,1724988639273,-39992.62893929,0.0002,2]
[336636771,1724988639283,-500.0,0.00020819,2]
[336636772,1724988639293,-500.0,0.00020819,2]
[336636773,1724988639304,-500.0,0.0002082,2]
[336636774,1724988639314,-509.23,0.0002082,2]
[336636775,1724988639323,-500.0,0.0002082,2]
[336636776,1724988639333,-500.0,0.0002082,2]
[336636777,1724988639343,-508.55147948,0.0002082,2]
[336636778,1724988639353,-500.0,0.0002082,2]
[336636779,1724988639362,-500.0,0.0002082,2]
[336636780,1724988639372,-500.0,0.00021092,2]
[336636781,1724988639381,-500.0,0.00021092,2]
[336636782,1724988639391,-500.0,0.00021092,2]
[336636783,1724988639400,-500.0,0.00021092,2]
[336636784,1724988639409,-500.0,0.00021092,2]
[336636785,1724988639418,-500.0,0.00021092,2]
[336636786,1724988639428,-500.0,0.00021092,2]
[336636787,1724988639437,-413.67162463,0.00021092,2]
[336636788,1724988639446,-643.25,0.00021093,2]
[336636789,1724988639455,-500.0,0.00021093,2]
[336636790,1724988639465,-500.0,0.00021093,2]
[336636791,1724988639474,-500.0,0.00021093,2]
[336636792,1724988639483,-500.0,0.00021093,2]
[336636793,1724988639492,-500.0,0.00021093,2]
[336636794,1724988639502,-500.0,0.00021093,2]
[336636795,1724988639511,-500.0,0.00021093,2]
[336636796,1724988639519,-500.0,0.00021094,2]
[336636797,1724988639531,-500.0,0.00021094,2]
[336636798,1724988639541,-500.0,0.00021094,2]
[336636799,1724988639550,-500.0,0.00021366,2]
[336636800,1724988639559,-500.0,0.00021366,2]
[336636802,1724988639569,-500.0,0.00021366,2]
[336636803,1724988639577,-429.65,0.00021366,2]
[336636805,1724988639587,-500.0,0.00021366,2]
[336636807,1724988639598,-500.0,0.00021366,2]
[336636810,1724988639611,-500.0,0.00021367,2]
[336636812,1724988639621,-304.46230549,0.00021367,2]
[336636814,1724988639632,-500.0,0.00021367,2]
[336636816,1724988639643,-500.0,0.00021367,2]
[336636818,1724988639652,-500.0,0.00021367,2]
[336636820,1724988639668,-500.0,0.00021367,2]
[336636822,1724988639677,-500.0,0.00021367,2]
[336636823,1724988639687,-500.0,0.00021368,2]
[336636825,1724988639698,-500.0,0.0002164,2]
[336636827,1724988639710,-500.0,0.0002164,2]
[336636829,1724988639721,-500.0,0.0002164,2]
[336636831,1724988639732,-500.0,0.0002164,2]
[336636833,1724988639744,-500.0,0.0002164,2]
[336636835,1724988639754,-500.0,0.00021641,2]
[336636837,1724988639766,-500.0,0.00021641,2]
[336636839,1724988639777,-500.0,0.00021641,2]
[336636841,1724988639786,-500.0,0.00021641,2]
[336636843,1724988639796,-500.0,0.00021642,2]
[336636844,1724988639805,-506.8,0.00021914,2]
[336636845,1724988639815,-500.0,0.00021914,2]
[336636847,1724988639825,-500.0,0.00021914,2]
[336636849,1724988639835,-500.0,0.00021914,2]
[336636850,1724988639847,-243.73529567,0.00021914,2]
[336636852,1724988639859,-500.0,0.00021915,2]
[336636854,1724988639870,-500.0,0.00021915,2]
[336636856,1724988639881,-500.0,0.00021915,2]
[336636858,1724988639892,-500.0,0.00021915,2]
[336636860,1724988639903,-505.52,0.00021916,2]
[336636862,1724988639912,-500.0,0.00022188,5]
[336636864,1724988639921,-500.0,0.00022188,5]
[336636866,1724988639931,-500.0,0.00022188,5]
[336636867,1724988639942,-518.49,0.00022189,5]
[336636868,1724988639951,-500.0,0.00022189,5]
[336636869,1724988639960,-500.0,0.00022189,5]
[336636870,1724988639969,-258.91669372,0.00022189,5]
[336636871,1724988639978,-500.0,0.00022189,5]
[336636872,1724988639987,-264.88,0.00022189,5]
[336636873,1724988639997,-500.0,0.0002219,5]
[336636874,1724988640006,-500.0,0.0002219,5]
[336636875,1724988640016,-500.0,0.0002219,5]
[336636876,1724988640027,-500.0,0.0002219,5]
[336636877,1724988640038,-500.0,0.00022462,5]
[336636878,1724988640048,-500.0,0.00022462,5]
[336636879,1724988640060,-500.0,0.00022462,5]
[336636880,1724988640070,-500.0,0.00022463,5]
[336636881,1724988640080,-500.0,0.00022463,5]
[336636882,1724988640091,-360.07,0.00022463,5]
[336636883,1724988640103,-541.19777393,0.00022464,5]
[336636884,1724988640115,-500.0,0.00022464,5]
[336636885,1724988640124,-500.0,0.00022464,5]
[336636886,1724988640134,-500.0,0.00022464,5]
[336636887,1724988640144,-500.0,0.00022736,5]
[336636888,1724988640155,-500.0,0.00022736,5]
[336636889,1724988640165,-500.0,0.00022736,5]
[336636890,1724988640176,-195.59,0.00022737,5]
[336636891,1724988640186,-500.0,0.00022737,5]
[336636892,1724988640196,-500.0,0.0002301,5]
[336636893,1724988640206,-314.84,0.0002301,5]
[336636894,1724988640215,-362.62,0.0002301,5]
[336636895,1724988640225,-500.0,0.00023011,5]
[336636896,1724988640236,-500.0,0.00023284,5]
[336636897,1724988640247,-500.0,0.00023285,5]
[336636898,1724988640257,-500.0,0.00023558,5]
[336636900,1724988640266,-500.0,0.00023559,5]